Cogmind - Beta 16.1 @@@ ROGUE MODE // 2026.04.25 @ 12:53:43 Player: the Result: Destroyed by PW-E5C(R) with Subdweller Machine Gun Performance ------------- Evolutions (0) 0 Regions Visited (2) 400 Robots Destroyed (27) 135 Value Destroyed (331) 331 Prototype IDs (0) 0 Alien Tech Used (0) 0 Bonus (0) 0 TOTAL SCORE: 866 Bonus ------- None Cogmind --------- Core Integrity 0/250 Matter 171/300 Energy 100/100 System Corruption 2% Temperature Cool (0) Movement Core (50) Location -10/Subcaves Parts ------- > --- POWER (1) -------- (None) > --- PROPULSION (2) --- (None) > --- UTILITY (2) ------ Core Shielding > --- WEAPON (2) ------- Light Assault Rifle > --- INVENTORY (5) ---- Light Ion Engine Improved Terrain Scanner Grenade Launcher Mining Laser Peak State ------------ > --- POWER ------------ Ion Engine > --- PROPULSION ------- Light Treads Light Treads > --- UTILITY ---------- Seismic Detector > --- WEAPON ----------- Particle Gun Light Assault Rifle > --- INVENTORY -------- Light Ion Engine Improved Terrain Scanner Datajack [Rating: 7] Favorites ----------- Power Ion Engine Engine Ion Engine Propulsion Light Treads Treads Light Treads Utility Core Shielding Device Structural Scanner Protection Core Shielding Weapon Light Assault Rifle Energy Gun EM Pulse Gun Ballistic Gun Light Assault Rifle Launcher Grenade Launcher Special Weapon Mining Laser Build | -11 -10 -10 ------- Run | Yrd Mat Sub Slots Evolved . | . . . Power . | . . . Propulsion . | . . . Utility . | . . . Weapon . | . . . Parts Attached 14 | 6 6 2 Power 2 | 1 1 . Engine 2 | 1 1 . Core . | . . . Reactor . | . . . Propulsion 2 | 2 . . Treads 2 | 2 . . Leg . | . . . Wheel . | . . . Hover . | . . . Flight . | . . . Utility 3 | 1 2 . Device 2 | 1 1 . Storage . | . . . Processor . | . . . Hackware . | . . . Protection 1 | . 1 . Artifact . | . . . Weapon 7 | 2 3 2 Energy Gun 2 | 1 1 . Energy Cannon . | . . . Ballistic Gun 3 | 1 1 1 Ballistic Cannon . | . . . Launcher 1 | . . 1 Special Weapon 1 | . 1 . Impact Weapon . | . . . Slashing Weapon . | . . . Piercing Weapon . | . . . Special Melee Weapon . | . . . Unidentified Prototypes . | . . . Parts Lost 9 | . 3 6 Power 2 | . 1 1 Propulsion 2 | . . 2 Utility 2 | . 1 1 Weapon 3 | . 1 2 Highest Loss Streak 4 | . 2 4 To Critical Strikes . | . . . Average Backups 3 | 1 3 4 Power . | . 1 1 Propulsion . | . . . Utility . | . 1 1 Weapon 1 | . 1 2 Tool/Special . | . . . Unused Backups 6 | 1 3 2 Power 1 | . . 1 Propulsion . | . . . Utility 1 | . . 1 Weapon 3 | 1 2 . Tool/Special 1 | . 1 . Average Slot Usage (%) 79 | . 85 71 Engine 10 | . 8 13 Treads 22 | . 28 14 Device 8 | . 13 . Protection 9 | . 7 14 Energy Gun 1 | . 2 . Ballistic Gun 21 | . 23 17 Special Weapon 4 | . 1 9 Peak Build Rating 7 | 6 7 7 Average Rating 5 | 4 6 4 On Entrance 4 | . 6 7 Avg Prop Armor Cover (%) . | . . . Naked Turns . | . . . Heaviest Build 9 | 9 9 8 Greatest Support 40 | 40 40 40 Greatest Overweight (x) . | . . . Average Overweight (x) . | . . . Largest Inventory Capacity 5 | 5 5 5 Average Capacity 5 | 5 5 5 Most Carried 5 | 3 5 5 Average Carried 3 | 1 3 4 Final Capacity 5 | 5 5 5 Final Carried 5 | 2 5 4 Class Distribution -------------------- 100% | Mutant Dominant Class ---------------- Mutant | -10/Materials Mutant | -10/Subcaves Resources | -11 -10 -10 ----------- Run | Yrd Mat Sub Matter Collected 470 | 289 127 54 Remotely . | . . . Salvage Created 668 | 266 276 126 Parts 57 | 13 34 10 Haulers Intercepted . | . . . Recyclers Shooed 1 | . 1 . Parts Field Recycled . | . . . Retrieved Matter . | . . . Parts Self-Destructed 8 | . . 8 Prevented . | . . . Parts Restored . | . . . Kills | -11 -10 -10 ------- Run | Yrd Mat Sub Combat Hostiles Destroyed 13 | . 8 5 Guns 10 | . 8 2 AOE 3 | . . 3 Classes Destroyed 8 | 3 3 2 Worker 3 | 2 1 . Builder 2 | . 2 . Tunneler 8 | 6 2 . Recycler 1 | 1 . . Swarmer 9 | . 6 3 Grunt 2 | . 2 . Sentry 1 | . . 1 Subdweller 1 | . . 1 Best Kill Streak 5 | 4 5 3 Combat Bots Only 4 | . 4 3 Max Kills in Single Turn 2 | 1 1 2 Gunslinging . | . . . Exploded 2 | . . 2 Melee . | . . . Uniques/NPCs Destroyed . | . . . Combat | -11 -10 -10 -------- Run | Yrd Mat Sub Hostile Shots Fired 109 | . 66 43 Missed 34 | . 17 17 Hits 75 | . 49 26 Projectile 75 | . 49 26 Damage Taken 1003 | . 484 519 Core 261 | . 125 136 Absorbed by Shields . | . . . Redirected to Shielding 37 | . 7 30 Core Remaining (%) 100 | 100 . . Volleys Fired 147 | 29 82 36 Largest 2 | 2 2 2 Hottest 120 | 60 120 100 Shots Fired 255 | 58 140 57 Gun 230 | 58 130 42 Cannon . | . . . Launcher 4 | . . 4 Special 21 | . 10 11 Kinetic 191 | 29 120 42 Thermal 24 | . 13 11 Explosive 4 | . . 4 Electromagnetic 36 | 29 7 . Robot Hit Streak 22 | 7 11 22 Robot Miss Streak 3 | 2 3 1 Penetration Max . | . . . Secondary Targets 3 | . 2 1 Max Gunslinging Chain 1 | . 1 1 Shots Hit Robots 151 | 34 79 38 Core Hits 53 | 13 28 12 Critical Kills . | . . . Critical Parts Destroyed . | . . . Critical Strikes . | . . . Melee Attacks . | . . . Impact . | . . . Slashing . | . . . Piercing . | . . . Sneak Attacks . | . . . Combat Hostiles . | . . . Follow-up Attacks . | . . . Damage Inflicted 1500 | 418 660 422 Guns 1301 | 362 637 302 Cannons . | . . . Explosions 197 | 56 21 120 Melee . | . . . Ramming 2 | . 2 . Kinetic 942 | 102 538 302 Thermal 109 | 56 53 . Explosive 120 | . . 120 Electromagnetic 327 | 260 67 . Impact . | . . . Slashing . | . . . Piercing . | . . . Highest Corruption 2 | . 2 2 Average Corruption 1 | . 1 2 Corruption Purged . | . . . Corruption Blocked . | . . . Effects 12 | . 6 6 Matter Fused 4 | . 2 2 Heat Flow Errors 2 | . . 2 Energy Discharges 1 | . 1 . Data Loss (minor) 3 | . 2 1 Misfires 1 | . . 1 Weapon Failures 1 | . 1 . Overload Shots . | . . . Overflow Damage 2 | . 2 . Projectiles . | . . . Explosions 2 | . 2 . Melee . | . . . Knockbacks . | . . . Impact . | . . . Kinetic . | . . . Secondary . | . . . Self-Inflicted Damage 39 | . 39 . Shots 1 | . 1 . Rammed 2 | . 2 . Targets Rammed 2 | . 2 . Kicked . | . . . Crushed . | . . . Highest Temperature 168 | 60 112 168 Average Temperature 38 | 26 43 89 Received Heat Transfer 117 | . 108 9 Siege Activations . | . . . Martial Activations . | . . . Shielding Activations . | . . . Robots Disrupted . | . . . Combat Hostiles . | . . . Robots Corrupted . | . . . Combat Hostiles . | . . . Parts Fried . | . . . Impact Corruptions . | . . . Robots Melted . | . . . Combat Hostiles . | . . . Parts Melted . | . . . Heat Transferred 174 | 50 124 . Parts Sabotaged . | . . . Parts Stolen . | . . . Parts Stripped . | . . . Power Chain Reactions 3 | 2 1 . Alert | -11 -10 -10 ------- Run | Yrd Mat Sub Maximum Alert Level . | . . . Low Security (%) 100 | 100 100 . Level 1 . | . . . Level 2 . | . . . Level 3 . | . . . Level 4 . | . . . Level 5 . | . . . High Security . | . . . Max Security . | . . . Peak Influence 93 | 10 93 . Initial . | . . . Average 14 | 1 17 . Influence Increases 362 | 45 227 90 Destroy 0b10 Robot/C 240 | . 160 80 Destroy 0b10 Robot/NC 70 | 45 25 . Destroy Leader 40 | . 30 10 Successful Hack 9 | . 9 . Destroy Structure 3 | . 3 . Influence Decreases 362 | 45 227 90 Time Decay 332 | 45 197 90 Lost Part 30 | . 30 . Squads Dispatched 1 | . 1 . Investigation . | . . . Extermination . | . . . Reinforcement 1 | . 1 . Assault . | . . . Garrison . | . . . Intercept . | . . . Searches Triggered . | . . . Construction Impeded . | . . . Haulers Reinforced . | . . . Active Scanning Responses . | . . . Cargo Convoy Interrupts . | . . . Stealth | -11 -10 -10 --------- Run | Yrd Mat Sub Distress Signals . | . . . Communications Jammed . | . . . Distress Signals . | . . . Times Spotted 21 | . 15 6 Peak Tracking Total 4 | . 4 3 Tactical Retreats . | . . . Traps | -11 -10 -10 ------- Run | Yrd Mat Sub Traps Triggered 2 | . 2 . Indirectly . | . . . Trap Hack Attempts . | . . . Triggered . | . . . Disarmed . | . . . Reprogrammed . | . . . Reused . | . . . Traps Extracted . | . . . Installed . | . . . Triggered . | . . . Machines | -11 -10 -10 ---------- Run | Yrd Mat Sub Machines Disabled . | . . . Max in Single Turn . | . . . Machines Repaired . | . . . Machines Dismantled . | . . . Machines Sabotaged . | . . . Overloaded Fab Kills . | . . . Hacking | -11 -10 -10 --------- Run | Yrd Mat Sub Machines Accessed 7 | . 6 1 Terminals 5 | . 5 . Fabricators . | . . . Repair Stations . | . . . Recycling Units 1 | . 1 . Scanalyzers . | . . . Garrison Access . | . . . Total Hacks 9 | . 8 1 Successful 7 | . 6 1 Failed 2 | . 2 . Catastrophic . | . . . Database Lockouts . | . . . Manual 6 | . 6 . Terminals 7 | . 7 . Fabricators . | . . . Repair Stations . | . . . Recycling Units 1 | . 1 . Scanalyzers . | . . . Garrison Access . | . . . Terminal Hacks 2 | . 1 1 Open Door 1 | . . 1 Locate Traps 1 | . 1 . Fabricator Hacks . | . . . Repair Station Hacks . | . . . Recycling Unit Hacks . | . . . Scanalyzer . | . . . Garrison Access Hacks . | . . . Unauthorized Hacks 5 | . 5 . Terminals 5 | . 5 . Botnet 1 | . 1 . Skim 4 | . 4 . Fabricators . | . . . Repair Stations . | . . . Recycling Units . | . . . Scanalyzers . | . . . Garrison Access . | . . . Data Cores Recovered . | . . . Used . | . . . Hacking Detections 5 | . 5 . Full Trace Events . | . . . Feedback Events . | . . . Feedback Blocked . | . . . Robot Schematics Acquired . | . . . Robots Built . | . . . Authchips . | . . . Time . | . . . Total Robot Build Rating . | . . . Part Schematics Acquired . | . . . Parts Built . | . . . Authchips . | . . . Time . | . . . Total Part Build Rating . | . . . Part Studies Acquired . | . . . Parts Repaired . | . . . Time . | . . . Parts Recycled . | . . . Recycled Matter . | . . . Retrieved Matter . | . . . Retrieved Components . | . . . Parts Scanalyzed . | . . . Part Schematics Acquired . | . . . Parts Damaged . | . . . Bothacking | -11 -10 -10 ------------ Run | Yrd Mat Sub Used RIF Installer . | . . . Robots Hacked . | . . . Non-combat . | . . . Combat . | . . . Robot Hacks Applied . | . . . Relay Couplers Released . | . . . Fabnet Peak Effective % . | . . . Robots Rewired . | . . . Allies Hacked . | . . . Hacks Repelled . | . . . Allies | -11 -10 -10 -------- Run | Yrd Mat Sub Total Allies . | . . . Largest Group . | . . . Highest-Rated Group . | . . . Highest-Rated Ally . | . . . Total Orders . | . . . Ally Attacks . | . . . Total Damage . | . . . Kills . | . . . Allies Corrupted . | . . . Allies Melted . | . . . Intel | -11 -10 -10 ------- Run | Yrd Mat Sub Active Infowar (turns) 878 | 49 811 18 Structural 676 | . 658 18 Seismic 202 | 49 153 . Robot Analysis Total . | . . . Derelict Logs Recovered 1 | . . 1 Drone Launches . | . . . Drone Recoveries . | . . . Exploration | -11 -10 -10 ------------- Run | Yrd Mat Sub Turns Passed 1664 | 232 846 586 Spaces Moved 760 | 89 378 293 Core 3 | 3 . . Treads 757 | 86 378 293 Legs . | . . . Wheels . | . . . Hover . | . . . Flight . | . . . Fastest Speed 50 | 50 160 160 Average Speed 159 | 156 160 160 Slowest Speed 160 | 160 160 160 Overloaded Moves . | . . . Propulsion Burnouts . | . . . Robots Hopped . | . . . Potential Cave-ins . | . . . Cave-ins Triggered . | . . . Exploration Rate (%) 33 | 5 68 26 Regions Visited 2 Branch Regions 1 Pre-discovered Areas . | . . . Known Exits Taken . | . . . Unknown Exits Taken 2 | 1 1 . Scrap Searched . | . . . Spaces Dug 5 | . . 5 Terrain Destroyed 26 | 7 2 17 Melee . | . . . Projectile 8 | . . 8 AOE 18 | 7 2 9 Terrain Rammed . | . . . Walls Destroyed . | . . . Machines Disabled . | . . . Actions | -11 -10 -10 --------- Run | Yrd Mat Sub Total 946 | 127 482 337 Wait 7 | . 6 1 Move 758 | 88 377 293 Hop . | . . . Pick Up 9 | 3 6 . Fast Attach 10 | 6 4 . Attach 1 | . . 1 Detach . | . . . Swap 8 | . 2 6 Drop 4 | 1 3 . Fire 147 | 29 82 36 Melee . | . . . Ram . | . . . Kick . | . . . Crush 2 | . 2 . Escape Stasis . | . . . Rewire . | . . . Trap . | . . . Miscellaneous . | . . . Route ------- -11/Scrapyard -10/Materials (discovered 3 exits: [*Mat x2] / *Sub) -10/Subcaves History --------- Turn | Location | Event 11 | -11/Scrapyard | Discovered new exit (range 15) 233 | -11/Scrapyard | Entered Materials 310 | -10/Materials | Build established: Mutant 695 | -10/Materials | Discovered new exit (range 9) 939 | -10/Materials | Discovered new exit (range 16) 1040 | -10/Materials | Discovered new exit (range 5) 1079 | -10/Materials | Entered Subcaves 1092 | -10/Subcaves | Core integrity fell below 50% 1161 | -10/Subcaves | A swath of the cavern ceiling suddenly collapsed 1639 | -10/Subcaves | Core integrity fell below 20% 1665 | -10/Subcaves | Destroyed by PW-E5C(R) with Subdweller Machine Gun Last Messages --------------- 01319_ Lgt. Ion Engine fries itself beyond repair. 01320_ The unstable cave ceiling collapses. 01321_ S-10 Pest destroyed. 01331_ Lgt. Ion Engine fries itself beyond repair. 01336_ Flight Unit fries itself beyond repair. 01397_ System corrupted: Heat flow error (+208). 01403_ The unstable cave ceiling collapses. 01493_ System corrupted: Matter fused (-6). 01616_ System corrupted: FCS attempts to trigger Lgt. Assault Rifle. 01616_ System corrupted: Lgt. Assault Rifle misfires. 01623_ V3-482(R) suffers critical hit (Destroy). 01640_ Lgt. Ion Engine destroyed. 01641_ V3-482(R) destroyed. 01641_ Switching to secondary target: PW-E5C(R). 01644_ Lgt. Assault Rifle destroyed. 01646_ Lgt. Treads destroyed. 01652_ PW-E5C(R) affixes Scrap Shield Fragment to Scrap Shield. 01653_ Subatomizers dissect the Sub. Power Source. 01660_ PW-E5C(R) affixes Scrap Shield Fragment to Scrap Shield. 01663_ Lgt. Assault Rifle destroyed. Map ----- +----------------------------------------------------+ | ?????????????????????????????????????????????????? | | ?????????????????????????????????????????????????? | | ?????????????????????????????????????????????????? | | ?????????????????????????????????????????????????? | | ?????????????????????????????????????????????????? | | ?????????????????????????????????????????????????? | | ?????????????????????????????????????????????????? | | ?????????????????????????????????????????????????? | | ?????????????????????????????????????????????????? | | ?????????????????????????????????????????????????? | | ?????????????????????????????????????????????????? | | ?????????????????????????????????????????????????? | | ?????????????????????????????????????????????????? | | ?????????????????????????????????????????????????? | | ??????????????????????????????##?????????????????? | | ##########?######???????????? ##????????????????? | | # ## # ### ##??????????# #????????????????? | | #?# #?????????#" ?????????????????? | | ### # ### #????????# "" ??????????????????? | | #?### ###????## "???????????????????? | | #?## #????# ????????????????????? | | ??# ### #???? * #????????????????????? | | ??# ## # ####? R% #????????????????????? | | ??## ### # ## ### = #????????????????????? | | ??## ## ## #????????????????????? | | ??# ## ## @ "#????????????????????? | | ??# ## # ### "#????????????????????? | | ??# ### # #?# ###????????????????????? | | ??##### # #### ##??????????????????????? | | ??????## ## #??######???????????????????????? | | ??????# #### #???????????????????????????????? | | ??????# #### #???????????????????????????????? | | ??????## #???????????????????????????????? | | ??????## ##???????????????????????????????? | | ?????## ## ###????????????????????????????????? | | ?????# ####??????????????????????????????????? | | ?????# ##?????????????????????????????????? | | ?????## ## ##????????????????????????????????? | | ??????##?## #????????????????????????????????? | | ??????????# #????????????????????????????????? | | ?####?????# #????????????????????????????????? | | ## #?????# ##????????????????????????????????? | | ####### ##?????????????????????????????????? | | ## #??????????????????????????????????? | | ##?????????????????????????????????? | | #?????????????????????????????????? | | ##????????????????????????????????? | | #????????????????????????????????? | | #????????????????????????????????? | | ### #???????????????????????????????? | +----------------------------------------------------+ Best States ------------- Heat Dissipation 25 Energy Generation 10 Energy Capacity 250 Matter Stores 300 Matter Capacity 300 Sight Range 16 Terrain Scan Density 10 Core Shielding 20 Evasion (%) 40 Recoil Reduction 2 Item Schematics ----------------- None Robot Schematics ------------------ None Fabricated ------------ Nothing Repaired ---------- Nothing Studied --------- None Alien Tech Used ----------------- None Achievements -------------- None Challenges ------------ None Game ------ Seed DeepDoorArray Manual? 0 Play Time 00:10:13 Cumulative 717.5 hours Start 2026.04.25 @ 12:38:29 End 2026.04.25 @ 12:53:43 Sessions 1 Manual Loads 0 Difficulty Rogue Special Mode None Game No. 396 Rogue 396 Adventurer 0 Explorer 0 Win Type - Total 32 Types 15/2/6/2/1/1/1/2/1/1 Lore% 94 Gallery% 89 Achievement% 80 Wizard Run 0 Options --------- Layout 0 ASCII 0 Keyboard 0 Movement Numpad Keybinds 0 Fullscreen 2 Font 24/Smallcaps Map View 76x50 Zoom Use 0% Tactical HUD 1 Map Filters NONE Filters NONE Steam 1 RUN: f4ffee6b-42fa-4359-9e21-09ababdc15ea